[Event "Chess Super League 2021"]
[Site "Online"]
[Date "2021.10.15"]
[Round "5.2"]
[White "Kosteniuk, Alexandra"]
[Black "Muzychuk, Anna"]
[Result "0-1"]
[ECO "B45"]
[WhiteElo "2518"]
[BlackElo "2533"]
[Annotator "ChessBase"]
[PlyCount "54"]
[EventDate "2021.10.11"]
[EventType "team-tourn"]
[EventCountry "NET"]
[SourceTitle "playchess.com"]
[Source "ChessBase"]
[SourceQuality "1"]
[TimeControl "900+10"]

1. e4 {[%emt 0:00:11]} c5 {[%emt 0:00:13]} 2. Nf3 {[%emt 0:00:05]} e6 {[%emt 0:00:01]} 3. d4 {[%emt 0:00:03]} cxd4 {[%emt 0:00:02]} 4. Nxd4 {[%emt 0:00:00]} Nf6 {[%emt 0:00:01]} 5. Nc3 {[%emt 0:00:04]} Nc6 {[%emt 0:00:02]} 6. Bf4 {[%emt 0:00:05]} Bb4 {[%emt 0:02:53]} 7. Ndb5 {[%emt 0:00:09]} Nxe4 {[%emt 0:00:41]} 8. Qf3 {[%emt 0:00:08]} d5 {[%emt 0:00:07]} 9. Nc7+ {[%emt 0:00:05]} Kf8 {[%emt 0:00:01]} 10. Nxa8 {[%emt 0:00:11]} e5 {[%emt 0:00:34]} 11. Bc1 {[%emt 0:12:27]} Nd4 {[%emt 0:05:16]} 12. Qd1 {[%emt 0:00:02]} Qh4 {[%emt 0:01:09]} 13. Be3 {[%emt 0:00:22]} Nxc3 {[%emt 0:01:58]} 14. Qd2 {[%emt 0:00:02]} Nxa2 {[%emt 0:03:42]} 15. c3 {[%emt 0:00:07]} Nb3 {[%emt 0:00:01]} 16. Qc2 {[%emt 0:00:52]} Nxa1 {[%emt 0:00:10]} 17. Qb1 {[%emt 0:00:27]} Nxc3 {[%emt 0:00:12]} 18. bxc3 {[%emt 0:00:01]} Bxc3+ {[%emt 0:00:01]} 19. Ke2 {[%emt 0:00:26]} Qc4+ {[%emt 0:00:07]} 20. Qd3 {[%emt 0:00:06]} Qa2+ {[%emt 0:00:12]} 21. Kd1 {[%emt 0:00:01]} Qb3+ {[%emt 0:00:27]} 22. Ke2 {[%emt 0:00:01]} Qb2+ {[%emt 0:00:20]} 23. Kd1 {[%emt 0:00:06]} Bd7 {[%emt 0:00:16]} 24. Bd2 {[%emt 0:00:06]} Ba4+ {[%emt 0:00:05]} 25. Ke1 {[%emt 0:00:01]} Qc1+ {[%emt 0:00:21]} 26. Ke2 {[%emt 0:00:02]} Qd1+ {[%emt 0:00:09]} 27. Ke3 {[%emt 0:00:00]} Bd4+ {[%emt 0:00:14]} 0-1

[Event "Chess Super League 2021"]
[Site "Online"]
[Date "2021.10.15"]
[Round "5.2"]
[White "Harika, Dronavalli"]
[Black "Karavade, Eesha"]
[Result "1-0"]
[ECO "A13"]
[WhiteElo "2511"]
[BlackElo "2345"]
[Annotator "ChessBase"]
[PlyCount "107"]
[EventDate "2021.10.11"]
[EventType "team-tourn"]
[EventCountry "NET"]
[SourceTitle "playchess.com"]
[Source "ChessBase"]
[SourceQuality "1"]
[TimeControl "900+10"]

1. c4 {[%emt 0:00:11]} e6 {[%emt 0:00:15]} 2. Nf3 {[%emt 0:00:03]} d5 {[%emt 0:00:03]} 3. b3 {[%emt 0:00:13]} Nf6 {[%emt 0:00:39]} 4. Bb2 {[%emt 0:00:02]} c5 {[%emt 0:00:28]} 5. e3 {[%emt 0:00:02]} Nc6 {[%emt 0:00:02]} 6. cxd5 {[%emt 0:00:09]} exd5 {[%emt 0:00:03]} 7. d4 {[%emt 0:00:44]} cxd4 {[%emt 0:00:47]} 8. Nxd4 {[%emt 0:00:02]} Bb4+ {[%emt 0:00:04]} 9. Bc3 {[%emt 0:00:02]} Qb6 {[%emt 0:02:58]} 10. Bxb4 {[%emt 0:02:22]} Qxb4+ {[%emt 0:00:11]} 11. Qd2 {[%emt 0:00:01]} Qxd2+ {[%emt 0:00:05]} 12. Kxd2 {[%emt 0:00:36]} Nxd4 {[%emt 0:00:05]} 13. exd4 {[%emt 0:00:01]} Bf5 {[%emt 0:00:37]} 14. Nc3 {[%emt 0:00:04]} O-O-O {[%emt 0:00:52]} 15. f3 {[%emt 0:00:17]} h5 {[%emt 0:00:02]} 16. Rc1 {[%emt 0:01:44]} Kb8 {[%emt 0:00:36]} 17. Bd3 {[%emt 0:00:03]} Bxd3 {[%emt 0:00:07]} 18. Kxd3 {[%emt 0:00:00]} Rhe8 {[%emt 0:00:02]} 19. Rhe1 {[%emt 0:00:13]} Rxe1 {[%emt 0:01:45]} 20. Rxe1 {[%emt 0:00:01]} Rd7 {[%emt 0:00:03]} 21. h4 {[%emt 0:00:39]} Kc7 {[%emt 0:00:56]} 22. Rc1 {[%emt 0:02:04]} Kb8 {[%emt 0:00:28]} 23. Ne2 {[%emt 0:02:03]} Rc7 {[%emt 0:00:41]} 24. Rd1 {[%emt 0:00:32]} Re7 {[%emt 0:00:29]} 25. Nf4 {[%emt 0:00:16]} Kc7 {[%emt 0:00:07]} 26. Rc1+ {[%emt 0:00:01]} Kd8 {[%emt 0:00:28]} 27. Rc5 {[%emt 0:00:28]} Rd7 {[%emt 0:00:02]} 28. Kd2 {[%emt 0:00:08]} b6 {[%emt 0:00:07]} 29. Rc1 {[%emt 0:00:09]} Rc7 {[%emt 0:00:03]} 30. Re1 {[%emt 0:00:01]} Re7 {[%emt 0:00:02]} 31. Re5 {[%emt 0:00:05]} g6 {[%emt 0:01:04]} 32. a4 {[%emt 0:00:57]} Rxe5 {[%emt 0:00:20]} 33. dxe5 {[%emt 0:00:01]} Nd7 {[%emt 0:00:01]} 34. e6 {[%emt 0:00:20]} fxe6 {[%emt 0:00:03]} 35. Nxe6+ {[%emt 0:00:02]} Ke7 {[%emt 0:00:16]} 36. Nf4 {[%emt 0:00:01]} Kf6 {[%emt 0:00:01]} 37. Nxd5+ {[%emt 0:00:08]} Kf5 {[%emt 0:00:01]} 38. b4 {[%emt 0:00:32]} Ke5 {[%emt 0:00:36]} 39. Ne7 {[%emt 0:00:30]} Kf6 {[%emt 0:00:01]} 40. Nc6 {[%emt 0:00:03]} a5 {[%emt 0:00:18]} 41. Kc3 {[%emt 0:00:20]} axb4+ {[%emt 0:00:10]} 42. Kxb4 {[%emt 0:00:03]} g5 {[%emt 0:00:07]} 43. hxg5+ {[%emt 0:00:54]} Kxg5 {[%emt 0:00:03]} 44. g3 {[%emt 0:00:47]} h4 {[%emt 0:00:03]} 45. gxh4+ {[%emt 0:00:08]} Kxh4 {[%emt 0:00:01]} 46. Kb5 {[%emt 0:00:03]} Kg3 {[%emt 0:00:04]} 47. Nd4 {[%emt 0:00:05]} Kf4 {[%emt 0:00:03]} 48. Kc6 {[%emt 0:00:11]} Nc5 {[%emt 0:00:38]} 49. Ne6+ {[%emt 0:01:21]} Nxe6 {[%emt 0:00:02]} 50. Kxb6 {[%emt 0:00:00]} Ke5 {[%emt 0:00:30]} 51. a5 {[%emt 0:00:02]} Kd6 {[%emt 0:00:03]} 52. a6 {[%emt 0:00:02]} Nc5 {[%emt 0:00:04]} 53. a7 {[%emt 0:00:07]} Na4+ {[%emt 0:00:07]} 54. Ka5 {[%emt 0:00:05]} 1-0

[Event "Chess Super League 2021"]
[Site "Online"]
[Date "2021.10.15"]
[Round "5.2"]
[White "Salonika, Saina"]
[Black "Tarini Goyal"]
[Result "1/2-1/2"]
[ECO "B19"]
[WhiteElo "2206"]
[BlackElo "2164"]
[Annotator "ChessBase"]
[PlyCount "56"]
[EventDate "2021.10.11"]
[EventType "team-tourn"]
[EventCountry "NET"]
[SourceTitle "playchess.com"]
[Source "ChessBase"]
[SourceQuality "1"]
[TimeControl "900+10"]

1. e4 {[%emt 0:00:11]} c6 {[%emt 0:00:16]} 2. d4 {[%emt 0:00:09]} d5 {[%emt 0:00:11]} 3. Nc3 {[%emt 0:00:14]} dxe4 {[%emt 0:00:15]} 4. Nxe4 {[%emt 0:00:03]} Bf5 {[%emt 0:00:03]} 5. Ng3 {[%emt 0:00:03]} Bg6 {[%emt 0:00:05]} 6. h4 {[%emt 0:00:05]} h6 {[%emt 0:00:13]} 7. Nf3 {[%emt 0:00:25]} Nd7 {[%emt 0:00:24]} 8. h5 {[%emt 0:00:11]} Bh7 {[%emt 0:00:02]} 9. Bd3 {[%emt 0:00:19]} Bxd3 {[%emt 0:00:19]} 10. Qxd3 {[%emt 0:00:02]} e6 {[%emt 0:00:36]} 11. Bd2 {[%emt 0:00:55]} Ngf6 {[%emt 0:00:31]} 12. O-O-O {[%emt 0:00:20]} Be7 {[%emt 0:00:29]} 13. Ne4 {[%emt 0:00:52]} Nxe4 {[%emt 0:00:14]} 14. Qxe4 {[%emt 0:00:03]} Nf6 {[%emt 0:00:02]} 15. Qe2 {[%emt 0:00:03]} Qd5 {[%emt 0:00:34]} 16. c4 {[%emt 0:01:03]} Qe4 {[%emt 0:00:42]} 17. Qxe4 {[%emt 0:01:02]} Nxe4 {[%emt 0:00:03]} 18. Be3 {[%emt 0:00:02]} f5 {[%emt 0:02:05]} 19. Nd2 {[%emt 0:02:09]} Nxd2 {[%emt 0:01:43]} 20. Kxd2 {[%emt 0:00:47]} Kf7 {[%emt 0:01:21]} 21. Ke2 {[%emt 0:00:07]} Rhd8 {[%emt 0:00:24]} 22. Rd3 {[%emt 0:00:35]} Rd7 {[%emt 0:01:14]} 23. Rhd1 {[%emt 0:00:27]} Rad8 {[%emt 0:00:06]} 24. b3 {[%emt 0:00:36]} Bf6 {[%emt 0:00:21]} 25. R3d2 {[%emt 0:02:19]} Rd6 {[%emt 0:01:30]} 26. Rd3 {[%emt 0:01:09]} R6d7 {[%emt 0:00:42]} 27. R3d2 {[%emt 0:01:02]} Rd6 {[%emt 0:01:01]} 28. Rd3 {[%emt 0:00:07]} R6d7 {[%emt 0:00:07]} 1/2-1/2

[Event "Chess Super League 2021"]
[Site "Online"]
[Date "2021.10.15"]
[Round "5.3"]
[White "Kulkarni Bhakti"]
[Black "Muzychuk, Mariya"]
[Result "0-1"]
[ECO "D02"]
[WhiteElo "2388"]
[BlackElo "2536"]
[Annotator "ChessBase"]
[PlyCount "120"]
[EventDate "2021.10.11"]
[EventType "team-tourn"]
[EventCountry "NET"]
[SourceTitle "playchess.com"]
[Source "ChessBase"]
[SourceQuality "1"]
[TimeControl "900+10"]

1. d4 {[%emt 0:00:11]} d5 {[%emt 0:00:15]} 2. Bf4 {[%emt 0:00:05]} Nf6 {[%emt 0:00:08]} 3. Nf3 {[%emt 0:00:06]} Bf5 {[%emt 0:00:05]} 4. c3 {[%emt 0:00:12]} e6 {[%emt 0:02:02]} 5. e3 {[%emt 0:00:07]} Bd6 {[%emt 0:00:22]} 6. Ne5 {[%emt 0:00:33]} Nbd7 {[%emt 0:00:41]} 7. Bd3 {[%emt 0:00:26]} O-O {[%emt 0:01:36]} 8. O-O {[%emt 0:00:16]} Bxe5 {[%emt 0:01:11]} 9. Bxe5 {[%emt 0:01:57]} Nxe5 {[%emt 0:00:40]} 10. Bxf5 {[%emt 0:00:38]} Nc4 {[%emt 0:00:29]} 11. b3 {[%emt 0:01:33]} exf5 {[%emt 0:00:43]} 12. bxc4 {[%emt 0:00:02]} dxc4 {[%emt 0:00:01]} 13. Na3 {[%emt 0:00:05]} Qd5 {[%emt 0:00:13]} 14. Qa4 {[%emt 0:01:48]} Ne4 {[%emt 0:00:08]} 15. Rac1 {[%emt 0:00:34]} Nd6 {[%emt 0:00:09]} 16. Rb1 {[%emt 0:00:11]} a6 {[%emt 0:00:23]} 17. Nc2 {[%emt 0:00:26]} Ne4 {[%emt 0:01:07]} 18. Nb4 {[%emt 0:00:02]} Qd6 {[%emt 0:00:14]} 19. Rb2 {[%emt 0:00:29]} b5 {[%emt 0:01:13]} 20. Qa3 {[%emt 0:00:31]} a5 {[%emt 0:00:35]} 21. Nc2 {[%emt 0:00:02]} Rfb8 {[%emt 0:00:21]} 22. Qxd6 {[%emt 0:00:58]} cxd6 {[%emt 0:00:52]} 23. Na3 {[%emt 0:00:10]} d5 {[%emt 0:00:09]} 24. Nxb5 {[%emt 0:01:51]} Nxc3 {[%emt 0:00:25]} 25. a4 {[%emt 0:00:01]} Nxb5 {[%emt 0:01:58]} 26. axb5 {[%emt 0:00:15]} a4 {[%emt 0:00:02]} 27. Ra1 {[%emt 0:00:05]} a3 {[%emt 0:00:07]} 28. Rb4 {[%emt 0:00:07]} Rb6 {[%emt 0:00:27]} 29. Kf1 {[%emt 0:00:07]} g6 {[%emt 0:00:06]} 30. Ke2 {[%emt 0:00:02]} Ra5 {[%emt 0:00:20]} 31. Ra2 {[%emt 0:00:16]} Kg7 {[%emt 0:00:05]} 32. Rb1 {[%emt 0:00:02]} g5 {[%emt 0:00:27]} 33. h3 {[%emt 0:00:33]} Kg6 {[%emt 0:00:06]} 34. Kd2 {[%emt 0:00:01]} h5 {[%emt 0:00:43]} 35. Kc3 {[%emt 0:00:14]} h4 {[%emt 0:00:08]} 36. Rba1 {[%emt 0:00:29]} Rbxb5 {[%emt 0:00:19]} 37. Rxa3 {[%emt 0:00:02]} Rxa3+ {[%emt 0:00:04]} 38. Rxa3 {[%emt 0:00:01]} Rb1 {[%emt 0:00:55]} 39. Ra6+ {[%emt 0:00:12]} f6 {[%emt 0:00:07]} 40. Ra5 {[%emt 0:00:18]} Rg1 {[%emt 0:00:02]} 41. Rxd5 {[%emt 0:00:11]} Rxg2 {[%emt 0:00:02]} 42. Rd7 {[%emt 0:00:46]} g4 {[%emt 0:00:33]} 43. hxg4 {[%emt 0:00:08]} fxg4 {[%emt 0:00:01]} 44. d5 {[%emt 0:00:10]} h3 {[%emt 0:00:04]} 45. Rd8 {[%emt 0:00:03]} Rxf2 {[%emt 0:00:47]} 46. d6 {[%emt 0:00:12]} Kf7 {[%emt 0:00:27]} 47. d7 {[%emt 0:00:08]} Ke7 {[%emt 0:00:05]} 48. Rg8 {[%emt 0:00:02]} Kxd7 {[%emt 0:00:01]} 49. Rxg4 {[%emt 0:00:01]} h2 {[%emt 0:00:23]} 50. Rh4 {[%emt 0:00:05]} Ke6 {[%emt 0:00:05]} 51. Rh5 {[%emt 0:00:46]} Kf7 {[%emt 0:00:06]} 52. Kxc4 {[%emt 0:00:06]} Kg6 {[%emt 0:00:01]} 53. Rh8 {[%emt 0:00:06]} Kf5 {[%emt 0:00:01]} 54. Kd3 {[%emt 0:00:16]} Kg4 {[%emt 0:00:03]} 55. Rh6 {[%emt 0:00:36]} Kg3 {[%emt 0:00:05]} 56. Rg6+ {[%emt 0:00:05]} Kh3 {[%emt 0:00:02]} 57. Rh6+ {[%emt 0:00:04]} Kg2 {[%emt 0:00:01]} 58. Rg6+ {[%emt 0:00:02]} Kf1 {[%emt 0:00:01]} 59. Rh6 {[%emt 0:00:02]} Kg1 {[%emt 0:00:01]} 60. Rg6+ {[%emt 0:00:08]} Rg2 {[%emt 0:00:05]} 0-1

[Event "Chess Super League 2021"]
[Site "Online"]
[Date "2021.10.15"]
[Round "5.3"]
[White "Gomes, Mary Ann"]
[Black "Abdumalik, Zhansaya"]
[Result "0-1"]
[ECO "D76"]
[WhiteElo "2354"]
[BlackElo "2507"]
[Annotator "ChessBase"]
[PlyCount "110"]
[EventDate "2021.10.11"]
[EventType "team-tourn"]
[EventCountry "NET"]
[SourceTitle "playchess.com"]
[Source "ChessBase"]
[SourceQuality "1"]
[TimeControl "900+10"]

1. Nf3 {[%emt 0:00:17]} Nf6 {[%emt 0:00:20]} 2. g3 {[%emt 0:00:05]} g6 {[%emt 0:00:05]} 3. Bg2 {[%emt 0:00:16]} Bg7 {[%emt 0:00:01]} 4. c4 {[%emt 0:00:03]} O-O {[%emt 0:00:12]} 5. O-O {[%emt 0:00:06]} d5 {[%emt 0:00:01]} 6. cxd5 {[%emt 0:00:14]} Nxd5 {[%emt 0:00:01]} 7. d4 {[%emt 0:00:02]} Nb6 {[%emt 0:00:08]} 8. Nc3 {[%emt 0:00:05]} Nc6 {[%emt 0:00:02]} 9. d5 {[%emt 0:00:03]} Na5 {[%emt 0:00:01]} 10. Qc2 {[%emt 0:00:19]} c6 {[%emt 0:00:02]} 11. dxc6 {[%emt 0:00:02]} Nxc6 {[%emt 0:00:01]} 12. Rd1 {[%emt 0:00:03]} Qe8 {[%emt 0:00:01]} 13. e4 {[%emt 0:00:30]} Bg4 {[%emt 0:00:15]} 14. Be3 {[%emt 0:06:24]} Nc4 {[%emt 0:00:38]} 15. Qe2 {[%emt 0:00:31]} N6e5 {[%emt 0:00:54]} 16. Bd4 {[%emt 0:02:16]} f5 {[%emt 0:02:32]} 17. Bxe5 {[%emt 0:02:53]} Nxe5 {[%emt 0:00:07]} 18. Qe3 {[%emt 0:00:15]} Nc4 {[%emt 0:00:56]} 19. Qc1 {[%emt 0:01:30]} Rc8 {[%emt 0:00:14]} 20. exf5 {[%emt 0:00:38]} gxf5 {[%emt 0:01:54]} 21. Rd3 {[%emt 0:00:09]} e5 {[%emt 0:00:13]} 22. Nd2 {[%emt 0:00:10]} e4 {[%emt 0:01:13]} 23. Nxc4 {[%emt 0:00:02]} exd3 {[%emt 0:00:11]} 24. Nd6 {[%emt 0:00:03]} Rxc3 {[%emt 0:00:11]} 25. bxc3 {[%emt 0:00:02]} Qe5 {[%emt 0:00:58]} 26. Nc4 {[%emt 0:01:07]} Qxc3 {[%emt 0:00:59]} 27. Rb1 {[%emt 0:00:14]} Qxc1+ {[%emt 0:00:47]} 28. Rxc1 {[%emt 0:00:02]} Bh6 {[%emt 0:00:40]} 29. f4 {[%emt 0:00:20]} Bg7 {[%emt 0:00:35]} 30. h3 {[%emt 0:00:27]} Bd4+ {[%emt 0:00:22]} 31. Kf1 {[%emt 0:00:15]} Be2+ {[%emt 0:00:32]} 32. Ke1 {[%emt 0:00:02]} b5 {[%emt 0:00:52]} 33. Bd5+ {[%emt 0:00:17]} Kh8 {[%emt 0:00:27]} 34. Nd2 {[%emt 0:00:01]} Re8 {[%emt 0:00:35]} 35. Rc6 {[%emt 0:00:37]} Bg4+ {[%emt 0:01:11]} 36. Re6 {[%emt 0:00:05]} Rxe6+ {[%emt 0:00:01]} 37. Bxe6 {[%emt 0:00:01]} Bxh3 {[%emt 0:00:00]} 38. Bd7 {[%emt 0:00:03]} a6 {[%emt 0:00:22]} 39. Bc8 {[%emt 0:00:01]} a5 {[%emt 0:00:09]} 40. Ba6 {[%emt 0:00:03]} b4 {[%emt 0:00:02]} 41. Bxd3 {[%emt 0:00:01]} Kg7 {[%emt 0:00:36]} 42. Nc4 {[%emt 0:00:09]} a4 {[%emt 0:00:05]} 43. Bc2 {[%emt 0:00:05]} a3 {[%emt 0:00:07]} 44. Nd6 {[%emt 0:00:17]} Kf6 {[%emt 0:00:07]} 45. Nb5 {[%emt 0:00:07]} Bc5 {[%emt 0:00:17]} 46. Nc7 {[%emt 0:00:04]} Bg2 {[%emt 0:00:11]} 47. Ne8+ {[%emt 0:00:13]} Kf7 {[%emt 0:00:15]} 48. Nc7 {[%emt 0:00:02]} Kf6 {[%emt 0:01:12]} 49. Ne8+ {[%emt 0:00:03]} Kg6 {[%emt 0:00:02]} 50. Ke2 {[%emt 0:00:32]} Bd5 {[%emt 0:00:08]} 51. Bb1 {[%emt 0:00:49]} b3 {[%emt 0:00:02]} 52. axb3 {[%emt 0:00:03]} Bxb3 {[%emt 0:00:01]} 53. g4 {[%emt 0:00:16]} a2 {[%emt 0:00:24]} 54. gxf5+ {[%emt 0:00:02]} Kf7 {[%emt 0:00:08]} 55. Nc7 {[%emt 0:00:02]} axb1=Q {[%emt 0:00:06]} 0-1

[Event "Chess Super League 2021"]
[Site "Online"]
[Date "2021.10.15"]
[Round "5.3"]
[White "Mrudul Dehankar"]
[Black "Savitha Shri B"]
[Result "0-1"]
[ECO "B67"]
[WhiteElo "2256"]
[BlackElo "2281"]
[Annotator "NA"]
[PlyCount "102"]
[EventDate "2021.10.11"]
[EventType "team-tourn"]
[EventCountry "NET"]
[SourceTitle "playchess.com"]
[Source "ChessBase"]
[SourceQuality "1"]
[TimeControl "900+10"]

1. e4 {[%emt 0:00:14]} c5 {[%emt 0:00:15]} 2. Nf3 {[%emt 0:00:02]} d6 {[%emt 0:00:04]} 3. d4 {[%emt 0:00:02]} cxd4 {[%emt 0:00:01]} 4. Nxd4 {[%emt 0:00:01]} Nf6 {[%emt 0:00:02]} 5. Nc3 {[%emt 0:00:01]} Nc6 {[%emt 0:00:01]} 6. Bg5 {[%emt 0:00:04]} e6 {[%emt 0:00:23]} 7. Qd2 {[%emt 0:00:03]} a6 {[%emt 0:00:01]} 8. O-O-O {[%emt 0:00:23]} Bd7 {[%emt 0:00:03]} 9. f4 {[%emt 0:00:36]} b5 {[%emt 0:00:03]} 10. Bxf6 {[%emt 0:05:52]} gxf6 {[%emt 0:00:04]} 11. f5 {[%emt 0:00:14]} Nxd4 {[%emt 0:00:37]} 12. Qxd4 {[%emt 0:00:10]} Bh6+ {[%emt 0:00:01]} 13. Kb1 {[%emt 0:00:06]} Bf4 {[%emt 0:00:01]} 14. fxe6 {[%emt 0:00:55]} fxe6 {[%emt 0:00:10]} 15. Be2 {[%emt 0:02:34]} h5 {[%emt 0:05:07]} 16. Bf3 {[%emt 0:03:47]} Be5 {[%emt 0:00:34]} 17. Qe3 {[%emt 0:00:07]} Qc7 {[%emt 0:00:10]} 18. Ne2 {[%emt 0:00:39]} Qc5 {[%emt 0:00:27]} 19. Qd2 {[%emt 0:00:21]} O-O-O {[%emt 0:03:17]} 20. Nf4 {[%emt 0:00:45]} Bxf4 {[%emt 0:03:34]} 21. Qxf4 {[%emt 0:00:03]} Qe5 {[%emt 0:00:13]} 22. Qxe5 {[%emt 0:01:05]} dxe5 {[%emt 0:00:00]} 23. Rd6 {[%emt 0:00:03]} a5 {[%emt 0:00:37]} 24. Rhd1 {[%emt 0:00:38]} Kc7 {[%emt 0:00:01]} 25. h4 {[%emt 0:00:08]} f5 {[%emt 0:00:43]} 26. Kc1 {[%emt 0:00:20]} Rhg8 {[%emt 0:01:18]} 27. c3 {[%emt 0:00:06]} Rh8 {[%emt 0:00:32]} 28. R1d2 {[%emt 0:00:08]} Rh7 {[%emt 0:00:22]} 29. Kd1 {[%emt 0:00:15]} b4 {[%emt 0:00:04]} 30. Ke1 {[%emt 0:00:02]} bxc3 {[%emt 0:00:02]} 31. bxc3 {[%emt 0:00:00]} Rhh8 {[%emt 0:00:07]} 32. Kf2 {[%emt 0:00:07]} Rhf8 {[%emt 0:00:02]} 33. Kg1 {[%emt 0:00:02]} Rh8 {[%emt 0:00:03]} 34. Kh2 {[%emt 0:00:27]} Rhg8 {[%emt 0:00:07]} 35. g3 {[%emt 0:00:21]} Rh8 {[%emt 0:00:09]} 36. Kg2 {[%emt 0:00:11]} a4 {[%emt 0:00:02]} 37. Kh2 {[%emt 0:00:03]} Rhf8 {[%emt 0:00:18]} 38. exf5 {[%emt 0:00:14]} exf5 {[%emt 0:00:01]} 39. Bxh5 {[%emt 0:00:01]} e4 {[%emt 0:00:07]} 40. R6d4 {[%emt 0:00:12]} a3 {[%emt 0:00:36]} 41. Bd1 {[%emt 0:00:06]} Be6 {[%emt 0:00:07]} 42. Kg2 {[%emt 0:00:20]} Rxd4 {[%emt 0:00:04]} 43. Rxd4 {[%emt 0:00:09]} Rb8 {[%emt 0:00:00]} 44. Ra4 {[%emt 0:00:16]} Rb2+ {[%emt 0:00:02]} 45. Kf1 {[%emt 0:00:00]} Rxa2 {[%emt 0:00:04]} 46. h5 {[%emt 0:00:08]} Ra1 {[%emt 0:00:01]} 47. Ke2 {[%emt 0:00:28]} a2 {[%emt 0:00:22]} 48. Ra3 {[%emt 0:00:05]} Rb1 {[%emt 0:00:07]} 49. h6 {[%emt 0:00:08]} a1=Q {[%emt 0:00:09]} 50. Rxa1 {[%emt 0:00:16]} Rxa1 {[%emt 0:00:00]} 51. h7 {[%emt 0:00:01]} Ra8 {[%emt 0:00:04]} 0-1